Workbook

Sheet 一般收入调整
A1: 附件1：
A2: 阎良区2018年一般公共预算收入调整表
D3: 单位：万元
A4: 项目 | B4: 一般公共预算收入
B5: 年初预算 | C5: 调整金额 | D5: 调整预算
A6: 区级一般公共预算收入 | B6: 126,090 | C6: =C7+C10 -> -30,000 | D6: =B6+C6 -> 96,090
A7: 一、税收收入 | B7: 89,430 | C7: =C8+C9 -> -8,920 | D7: =B7+C7 -> 80,510
A8: 其中：耕地占用税 | B8: 30,030 | C8: -19,000 | D8: =B8+C8 -> 11,030
A9: 契税 | B9: 3,000 | C9: =12000-1920 -> 10,080 | D9: =B9+C9 -> 13,080
A10: 二、非税收入 | B10: 36,660 | C10: =C11+C14 -> -21,080 | D10: =B10+C10 -> 15,580
A11: 专项收入 | B11: 29,440 | C11: =C12+C13 -> -20,080 | D11: 9,360
A12: 其中：教育基金收入 | B12: 13,820 | C12: =-11000+960 -> -10,040 | D12: 3,780
A13: 农田水利建设资金收入 | B13: 13,820 | C13: =-11000+960 -> -10,040 | D13: 3,780
A14: 其他收入 | B14: 1,000 | C14: -1,000 | D14: 0
A22: 一般公共预算收入合计 | B22: =B7+B10 -> 126,090 | C22: =C7+C10 -> -30,000 | D22: 96,090

Sheet 一般收支调整
A1: 附件2：
A2: 阎良区2018年一般公共预算收支调整表
E3: 单位：万元
A4: 项目 | B4: 一般公共预算收入
B5: 年初预算 | C5: 调增金额 | D5: 调减金额 | E5: 调整预算
A6: 区级一般公共预算收入 | B6: 126,090 | D6: 30,000 | E6: =B6+C6-D6 -> 96,090
A7: 转移性收入 | B7: 41,118 | C7: =C8+C9 -> 43,212 | E7: =B7+C7-D7 -> 84,330
A8: 其中：新增一般债券转贷收入 | C8: 4,000 | E8: 4,000
A9: 专项转移支付收入 | B9: 26,618 | C9: 39,212 | E9: 65,830
A10: 调入预算稳定调节基金 | C10: 167 | E10: 167
A11: 上年结余 | C11: 2,000 | E11: 2,000
A12: 一般公共预算总收入合计 | B12: =B6+B7 -> 167,208 | C12: =C7+C6+C10+C11 -> 45,379 | D12: 30,000 | E12: =E6+E7+E10+E11 -> 182,587
A14: 项目 | B14: 一般公共预算支出
B15: 年初预算 | C15: 调增金额 | D15: 调减金额 | E15: 调整预算
A16: 区本级一般公共预算支出 | B16: 159,208 | C16: =39212+2167 -> 41,379 | D16: 30,000 | E16: =B16+C16-D16 -> 170,587
A17: 转移性支出 | B17: 8,000 | C17: 4,000 | E17: 12,000
A18: 其中：新增一般债券转贷支出 | C18: 4,000 | E18: 4,000
A19: 上解上级支出 | B19: 8,000 | E19: =B19+C19-D19 -> 8,000
E20: 0
E21: 0
A22: 一般公共预算总支出合计 | B22: =B16+B17 -> 167,208 | C22: =C16+C17 -> 45,379 | D22: =SUM(D16:D19) -> 30,000 | E22: =E16+E17 -> 182,587

Sheet 政府性基金收支调整表
A1: 附件3：
A2: 阎良区2018年政府性基金预算收支调整表
D3: 单位：万元
A4: 项目 | B4: 政府性基金收入
B5: 年初预算 | C5: 调剂金额 | D5: 调整预算
A6: 政府性基金年初预算收入 | B6: 10,200 | D6: =B6+C6 -> 10,200
A7: 转移性收入 | C7: =C8+C9 -> 15,843 | D7: =B7+C7 -> 15,843
A8: 其中：新增专项债券收入 | C8: 10,000 | D8: =B8+C8 -> 10,000
A9: 上级转移支付收入 | C9: 5,843 | D9: 5,843
D10: 0
A11: 政府性基金总收入 | B11: =SUM(B6:B10) -> 10,200 | C11: =C7 -> 15,843 | D11: =D7+D6 -> 26,043
A12: 项目 | B12: 政府性基金支出
A13: 政府性基金年初预算支出 | B13: 10,200 | C13: 5,843 | D13: =B13+C13 -> 16,043
A14: 专项债券转贷支出 | C14: 10,000 | D14: 10,000
A17: 政府性基金总支出 | B17: =SUM(B13:B16) -> 10,200 | C17: =SUM(C13:C16) -> 15,843 | D17: 26,043

Sheet 新增债分配方案
A1: 附件4：
A2: 阎良区2018年新增债券转贷资金分配方案
F3: 单位：万元
A4: 序号 | B4: 分类 | C4: 部门 | D4: 功能科目 | E4: 项目 | F4: 预分配金额
A5: 1 | B5: 置换项目 | C5: 区城市管理局 | D5: 【2120501】城乡社区环境卫生 | E5: 人民西路绿化提升应急工程经费 | F5: 500
A6: 2 | D6: 【2120501】城乡社区环境卫生 | E6: 生活垃圾场卫生填埋渗滤液收集项目工程款 | F6: 500
A7: 3 | C7: 区卫生和计划生育局 | D7: 【2120501】城乡社区环境卫生 | E7: 农村无害化户厕提升改造 | F7: 132
A8: 4 | C8: 区建设与住房保障局 | D8: 【2120399】其他城乡社区公共设施支出 | E8: 城市基础设施建设（航空城大道雨、污分流改造项目） | F8: 438
A9: 5 | C9: 航空基地管委会 | D9: 【2150802】一般行政管理事务 | E9: 污水处理费 | F9: 814
A10: 6 | C10: 区基础设施建设投资管理公司 | D10: 【2210103】棚户区改造 | E10: 棚户区改造 | F10: 1,616
C11: 合计 | F11: =SUM(F5:F10) -> 4,000
